[Event "Turkish Cup 2022"]
[Site "Sakarya"]
[Date "2022.03.29"]
[Round "7.36"]
[White "Kurtyilmaz, Kuzey"]
[Black "Danaci, Ege"]
[Result "1-0"]
[ECO "B38"]
[WhiteElo "1394"]
[BlackElo "2264"]
[Annotator "NA"]
[PlyCount "69"]
[EventDate "2022.03.25"]
[EventType "swiss"]
[EventCountry "TUR"]
[SourceTitle "playchess.com"]
[Source "ChessBase"]
[SourceQuality "1"]
[TimeControl "5400+30"]

1. e4 c5 2. Nf3 Nc6 3. d4 cxd4 4. Nxd4 g6 5. c4 Bg7 6. Be3 {[%emt 0:01:30]} d6 {[%emt 0:06:30]} 7. Nc3 {[%emt 0:00:30]} Nxd4 {[%emt 0:00:30]} 8. Bxd4 {[%emt 0:00:30]} Nf6 {[%emt 0:00:30]} 9. Be2 {[%emt 0:00:30]} O-O {[%emt 0:00:30]} 10. O-O {[%emt 0:00:30]} Be6 {[%emt 0:00:00]} 11. Qd2 {[%emt 0:00:30]} Rc8 {[%emt 0:01:00]} 12. b3 {[%emt 0:00:30]} Nd7 {[%emt 0:00:30]} 13. Bxg7 {[%emt 0:00:30]} Kxg7 {[%emt 0:00:30]} 14. Qd4+ {[%emt 0:01:30]} f6 {[%emt 0:00:30]} 15. Qxa7 {[%emt 0:03:30]} Nc5 {[%emt 0:00:30]} 16. Qa3 {[%emt 0:00:30]} Bd7 {[%emt 0:05:30]} 17. b4 {[%emt 0:08:30]} Ne6 {[%emt 0:00:30]} 18. Rfd1 {[%emt 0:05:30]} Nf4 {[%emt 0:05:30]} 19. Bf1 {[%emt 0:01:30]} f5 {[%emt 0:01:30]} 20. exf5 {[%emt 0:00:30]} Bxf5 {[%emt 0:00:30]} 21. Nd5 {[%emt 0:04:30]} Nxd5 {[%emt 0:08:30]} 22. Rxd5 {[%emt 0:01:30]} Qb6 {[%emt 0:04:30]} 23. Qb2+ {[%emt 0:02:30]} Rf6 {[%emt 0:00:30]} 24. a4 {[%emt 0:02:30]} Be4 {[%emt 0:03:30]} 25. a5 {[%emt 0:02:30]} Qa7 {[%emt 0:00:00]} 26. Qd4 {[%emt 0:01:30]} Qxd4 {[%emt 0:01:00]} 27. Rxd4 {[%emt 0:00:30]} Bc6 {[%emt 0:00:00]} 28. b5 {[%emt 0:03:30]} Be8 {[%emt 0:00:00]} 29. g3 {[%emt 0:04:30]} e5 {[%emt 0:00:30]} 30. Rd2 {[%emt 0:00:30]} Rf3 {[%emt 0:03:30]} 31. Bg2 {[%emt 0:00:30]} Rc3 {[%emt 0:00:00]} 32. a6 {[%emt 0:01:30]} bxa6 {[%emt 0:00:00]} 33. bxa6 {[%emt 0:00:30]} R8xc4 {[%emt 0:00:30]} 34. a7 {[%emt 0:00:30]} Rc1+ {[%emt 0:00:00]} 35. Rd1 {[%emt 0:00:00]} 1-0

[Event "Turkish Cup 2022"]
[Site "Sakarya"]
[Date "2022.03.29"]
[Round "7.37"]
[White "Kul, Ozdemir Efe"]
[Black "Ozates, Veysel"]
[Result "1-0"]
[ECO "A07"]
[WhiteElo "2042"]
[BlackElo "1645"]
[Annotator "TA"]
[PlyCount "161"]
[EventDate "2022.03.25"]
[EventType "swiss"]
[EventCountry "TUR"]
[SourceTitle "playchess.com"]
[Source "ChessBase"]
[SourceQuality "1"]
[TimeControl "5400+30"]

{[%evp 88,161,158,158,158,158,158,158,158,158,158,158,158,158,158,0,158,158,158,118,206,205,206,206,202,201,200,198,191,151,151,151,151,151,151,151,151,151,151,130,236,233,221,23,327,0,239,202,197,200,185,167,179,129,218,197,349,322,412,418,561,562,826,812,780,787,876,800,2478,2753,3787,3341,2463,1130,1589,1115]} 1. Nf3 d5 2. g3 Nf6 3. Bg2 c6 4. O-O Bf5 5. d3 Nbd7 {[%emt 0:03:00]} 6. Nc3 {[%emt 0:04:30]} e5 {[%emt 0:02:30]} 7. Re1 {[%emt 0:01:30]} Qc7 {[%emt 0:03:30]} 8. h3 {[%emt 0:01:30]} Rd8 {[%emt 0:02:30]} 9. a3 {[%emt 0:00:30]} h6 {[%emt 0:01:30]} 10. e3 {[%emt 0:00:30]} Be7 {[%emt 0:00:30]} 11. b3 {[%emt 0:00:30]} O-O {[%emt 0:00:30]} 12. Bb2 {[%emt 0:00:30]} Rfe8 {[%emt 0:04:30]} 13. Nd2 {[%emt 0:03:30]} Bg6 {[%emt 0:03:30]} 14. e4 {[%emt 0:00:30]} d4 {[%emt 0:01:30]} 15. Ne2 {[%emt 0:00:30]} c5 {[%emt 0:07:30]} 16. f4 {[%emt 0:01:30]} exf4 {[%emt 0:03:30]} 17. gxf4 {[%emt 0:00:30]} Nf8 {[%emt 0:00:30]} 18. Rf1 {[%emt 0:00:30]} Bh5 {[%emt 0:05:30]} 19. Nf3 {[%emt 0:07:30]} Ng6 {[%emt 0:07:30]} 20. Bc1 {[%emt 0:00:30]} Nd7 {[%emt 0:01:30]} 21. Ng3 {[%emt 0:02:30]} Bxf3 {[%emt 0:00:30]} 22. Qxf3 {[%emt 0:00:30]} Nf6 {[%emt 0:03:30]} 23. Nf5 {[%emt 0:01:30]} Bf8 {[%emt 0:01:30]} 24. Rf2 {[%emt 0:03:30]} Ne7 {[%emt 0:02:30]} 25. Nh4 {[%emt 0:01:30]} Ng6 {[%emt 0:00:30]} 26. Nxg6 {[%emt 0:07:30]} fxg6 {[%emt 0:00:30]} 27. e5 {[%emt 0:00:30]} Nd5 {[%emt 0:01:30]} 28. Qg4 {[%emt 0:01:30]} Qf7 {[%emt 0:06:30]} 29. Be4 {[%emt 0:00:30]} Ne7 {[%emt 0:00:30]} 30. Rg2 {[%emt 0:05:30]} Kh7 {[%emt 0:02:30]} 31. h4 {[%emt 0:03:30]} Kh8 {[%emt 0:03:30]} 32. Bxb7 {[%emt 0:06:30]} h5 {[%emt 0:03:30]} 33. Qg5 {[%emt 0:00:30]} Kh7 {[%emt 0:00:30]} 34. Be4 {[%emt 0:01:30]} Nf5 {[%emt 0:00:30]} 35. Bxf5 {[%emt 0:01:30]} gxf5 {[%emt 0:01:30]} 36. Bd2 {[%emt 0:05:30]} Rb8 {[%emt 0:01:30]} 37. Kh2 {[%emt 0:01:30]} Re6 {[%emt 0:00:30]} 38. Rag1 {[%emt 0:00:30]} g6 {[%emt 0:00:30]} 39. Qg3 {[%emt 0:00:30]} Qb7 {[%emt 0:02:30]} 40. Re2 {[%emt 0:01:30]} Be7 {[%emt 0:00:30]} 41. Kh3 {[%emt 0:00:30]} Bd8 {[%emt 0:00:30]} 42. Qe1 {[%emt 0:00:30]} Be7 {[%emt 0:00:30]} 43. Reg2 {[%emt 0:02:30]} Qd5 {[%emt 0:04:30]} 44. Qe2 {[%emt 0:00:30]} Kh6 {[%emt 0:00:30]} 45. Be1 {[%emt 0:00:30]} Qc6 {[%emt 0:00:30]} 46. a4 {[%emt 0:03:30]} Qd5 {[%emt 0:00:30]} 47. Rg3 {[%emt 0:00:30]} Qd8 {[%emt 0:01:30]} 48. Qg2 {[%emt 0:01:30]} Qb6 {[%emt 0:00:30]} 49. Ba5 {[%emt 0:02:30]} Qc6 {[%emt 0:00:30]} 50. Qe2 {[%emt 0:03:30]} Qd5 {[%emt 0:02:59]} 51. Be1 $2 {[%emt 0:00:30]} (51. Qf3 $16 Qxf3 52. Rxf3) 51... Qc6 $2 {[%emt 0:00:30]} ({Better is} 51... Qd8 $1 $11) 52. Bf2 {[%emt 0:00:30]} Qd5 {[%emt 0:00:30]} 53. Ra1 {[%emt 0:00:30]} a5 {[%emt 0:00:30]} (53... Rg8 $16 {was called for.} 54. Rag1 Qc6) 54. Rag1 $18 {[%emt 0:00:30]} Qc6 {[%emt 0:00:30]} 55. Be1 {[%emt 0:00:30]} Bd8 {[%emt 0:00:30]} 56. Bd2 {[%emt 0:00:30]} Qa6 {[%emt 0:00:30]} 57. Qe1 {[%emt 0:00:30]} Rb7 {[%emt 0:00:00]} 58. Qf2 {[%emt 0:01:30]} Qc6 {[%emt 0:00:13]} 59. Rc1 {[%emt 0:01:30]} Qb6 {[%emt 0:01:08]} 60. Qg2 {[%emt 0:03:30]} Rb8 {[%emt 0:01:15]} 61. Qd5 {[%emt 0:01:30]} Qc6 {[%emt 0:04:08]} 62. Qxc6 {[%emt 0:00:30]} Rxc6 {[%emt 0:00:02]} 63. c3 {[%emt 0:00:30]} Rbc8 {[%emt 0:00:51] [#]} (63... Rc7 $16 {was worth a try.}) 64. cxd4 $1 $18 {[%emt 0:01:30]} cxd4 {[%emt 0:00:16] [#]} 65. Rgg1 $2 {[%emt 0:00:00]} (65. Rc4 $1 $18 {[%cal Rc4d4]}) 65... Kg7 $2 {[%emt 0:02:03][%mdl 8192]} (65... Rc2 $1 $11) 66. Kg3 $2 {[%emt 0:01:00]} (66. Rxc6 $18 Rxc6 67. Rc1) 66... Kf7 $2 {[%emt 0:01:16]} (66... Rc2 $11 {and Black stays safe.}) 67. Rc4 {[%emt 0:02:38]} Rxc4 {[%emt 0:02:41]} 68. dxc4 {[%emt 0:00:06]} ({Weaker is} 68. bxc4 Rb8 $11) 68... Rb8 {[%emt 0:01:47]} 69. Rb1 {[%emt 0:00:30]} Ke6 {[%emt 0:00:30]} 70. Kf3 {[%emt 0:01:06]} (70. Be1 $18) 70... Kd7 {[%emt 0:01:14]} (70... Bxh4 $16 71. Bxa5 g5) 71. Ke2 {[%emt 0:00:30]} Bb6 $2 {[%emt 0:00:33]} (71... Bxh4 72. Bxa5 g5) 72. c5 $18 {[%emt 0:05:50]} Bc7 {[%emt 0:00:30]} 73. Kd3 {[%emt 0:00:30]} Kc6 {[%emt 0:00:30]} 74. Kc4 {[%emt 0:00:14]} d3 {[%emt 0:04:28]} 75. Rg1 {[%emt 0:00:48]} Rg8 {[%emt 0:00:36]} 76. Rg3 {[%emt 0:00:30]} Bd8 {[%emt 0:00:30]} 77. Rxd3 {[%emt 0:00:30]} Be7 {[%emt 0:00:30]} 78. Bxa5 {[%emt 0:00:30]} Bxc5 {[%emt 0:00:43]} 79. b4 {[%emt 0:01:14]} Bf2 {[%emt 0:00:33]} 80. b5+ {[%emt 0:00:49]} Kb7 {[%emt 0:00:09]} 81. Bd8 {[%emt 0:01:27]} 1-0

[Event "Turkish Cup 2022"]
[Site "Sakarya"]
[Date "2022.03.29"]
[Round "7.38"]
[White "Demirag, Batuhan"]
[Black "Unsal, Gorkem"]
[Result "1/2-1/2"]
[ECO "B30"]
[WhiteElo "1923"]
[BlackElo "1672"]
[Annotator "TA"]
[PlyCount "68"]
[EventDate "2022.03.25"]
[EventType "swiss"]
[EventCountry "TUR"]
[SourceTitle "playchess.com"]
[Source "ChessBase"]
[SourceQuality "1"]
[TimeControl "5400+30"]

{[%evp 15,68,-52,-52,-54,-53,-68,-51,-72,-43,-88,5,-70,-14,-48,0,-36,-49,-133,-131,-123,-135,-129,-127,-156,-34,-33,-25,-33,0,0,0,0,18,-68,-13,-60,72,84,63,86,1162,1109,1321,1218,29986,0,0,0,0,0,0,0,0,0,0]} 1. e4 c5 2. Nf3 Nc6 3. Bb5 e5 4. Bxc6 dxc6 5. d3 {[%emt 0:03:00]} Bd6 {[%emt 0:05:00]} 6. h3 {[%emt 0:00:30]} Ne7 {[%emt 0:00:30]} 7. Be3 {[%emt 0:01:30]} O-O {[%emt 0:02:30]} 8. g4 {[%emt 0:03:30]} Ng6 {[%emt 0:04:30]} 9. Nc3 {[%emt 0:01:30]} Be6 {[%emt 0:18:30]} 10. Qd2 {[%emt 0:01:30]} b5 {[%emt 0:01:30]} 11. Ne2 {[%emt 0:01:30]} c4 {[%emt 0:05:30]} 12. d4 {[%emt 0:03:30]} f6 {[%emt 0:21:30]} (12... Qf6 $17 13. Neg1 Qe7) 13. c3 {[%emt 0:03:30]} (13. dxe5 $11 fxe5 14. Ng5) 13... Bf7 {[%emt 0:01:30]} (13... Qe7 $15) 14. h4 {[%emt 0:20:30]} Re8 {[%emt 0:09:30]} (14... Qe7 $15 {should be considered.}) 15. O-O-O {[%emt 0:07:30]} Nf4 {[%emt 0:09:37]} 16. Bxf4 {[%emt 0:02:30]} (16. dxe5 $15 Nd3+ 17. Kb1 Bxe5 18. Nxe5 Nxe5 19. Qxd8 Raxd8 20. Rxd8 Rxd8 21. f4 Nxg4 22. Bxa7) 16... exf4 $17 {[%emt 0:00:04]} 17. e5 {[%emt 0:01:30]} Bd5 {[%emt 0:01:58]} 18. Rh3 {[%emt 0:02:30]} ({Don't blunder} 18. Qxf4 $2 fxe5 19. dxe5 Rf8 20. Rxd5 (20. Qh2 $2 Bxf3 21. Rhe1 Qa5 $19) 20... Rxf4 21. Rxd6 Qf8 22. Nxf4 Qxf4+ 23. Nd2 Qxf2) 18... fxe5 {[%emt 0:02:47]} 19. Nxe5 {[%emt 0:00:00]} Bxe5 {[%emt 0:00:21]} (19... Bg2 $17 20. Rh2 Bxe5 21. dxe5 Qxd2+ 22. Rxd2 Rxe5 $1 23. Rxg2 f3) 20. dxe5 $15 {[%emt 0:00:00]} Rxe5 {[%emt 0:00:30]} 21. Nxf4 {[%emt 0:00:30]} Qa5 {[%emt 0:01:06]} (21... Qf8 $5 {[%cal Ra8d8]}) 22. a3 {[%emt 0:05:30]} Rae8 {[%emt 0:06:41]} 23. g5 {[%emt 0:01:30]} Be4 {[%emt 0:00:30]} 24. h5 {[%emt 0:00:30]} (24. Re3 $11) 24... Bf5 {[%emt 0:00:30]} ({Don't play} 24... Rxg5 25. h6 (25. Qd7 Rge5 $11) 25... Rge5 26. hxg7 $11) ({Black should try} 24... Qc7 $1 $15 25. g6 Rf5) 25. Rg3 {[%emt 0:04:30]} (25. Re3 $11 Rxe3 26. fxe3) 25... Qa4 {[%emt 0:05:04]} (25... Qc7 $1 $15 {stays ahead.} 26. g6 h6) 26. Re3 $16 {[%emt 0:04:30]} Rxe3 {[%emt 0:01:06]} 27. fxe3 {[%emt 0:00:30]} Qb3 $2 {[%emt 0:00:00][%mdl 8192]} (27... Qa6 $16) 28. e4 $1 $18 {[%emt 0:02:30]} Bxe4 {[%emt 0:03:16]} 29. Re1 {[%emt 0:00:30]} g6 {[%emt 0:00:00] [#]} 30. hxg6 $2 {[%emt 0:14:02]} (30. Rxe4 $1 {[%mdl 512] mates} Rxe4 31. Qd8+ Kf7 32. hxg6+ hxg6 33. Qf6+ Ke8 34. Qxc6+ Kd8 35. Qxe4) 30... hxg6 $11 {[%emt 0:00:00]} 31. Rxe4 {[%emt 0:09:14]} Rxe4 {[%emt 0:00:00]} 32. Qd8+ {[%emt 0:01:53]} Kh7 {[%emt 0:00:07]} 33. Qd7+ {[%emt 0:02:58]} Kg8 {[%emt 0:00:06]} 34. Qd8+ {[%emt 0:00:58]} Kh7 {[%emt 0:00:07]} 1/2-1/2

[Event "Turkish Cup 2022"]
[Site "Sakarya"]
[Date "2022.03.29"]
[Round "7.39"]
[White "Isbilir, Okan"]
[Black "Hatipoglu, Metin"]
[Result "1-0"]
[ECO "E08"]
[WhiteElo "1915"]
[BlackElo "1579"]
[Annotator "NA"]
[PlyCount "71"]
[EventDate "2022.03.25"]
[EventType "swiss"]
[EventCountry "TUR"]
[SourceTitle "playchess.com"]
[Source "ChessBase"]
[SourceQuality "1"]
[TimeControl "5400+30"]

1. d4 d5 2. c4 e6 3. g3 Nf6 4. Bg2 Be7 5. Nf3 O-O 6. Qc2 {[%emt 0:01:30]} Nbd7 {[%emt 0:06:30]} 7. O-O {[%emt 0:00:30]} c5 {[%emt 0:01:30]} 8. cxd5 {[%emt 0:07:30]} Nxd5 {[%emt 0:02:30]} 9. Nc3 {[%emt 0:00:30]} cxd4 {[%emt 0:00:30]} 10. Nxd5 {[%emt 0:00:30]} exd5 {[%emt 0:00:30]} 11. Nxd4 {[%emt 0:00:30]} Nf6 {[%emt 0:04:30]} 12. Bf4 {[%emt 0:02:30]} Bd6 {[%emt 0:07:30]} 13. Bxd6 {[%emt 0:03:30]} Qxd6 {[%emt 0:00:30]} 14. Rac1 {[%emt 0:02:30]} Bd7 {[%emt 0:04:30]} 15. Qb3 {[%emt 0:09:30]} Bc6 {[%emt 0:11:30]} 16. e3 {[%emt 0:02:30]} Rfe8 {[%emt 0:03:30]} 17. Rc2 {[%emt 0:05:30]} Rac8 {[%emt 0:06:30]} 18. Rfc1 {[%emt 0:00:30]} a6 {[%emt 0:03:30]} 19. Nxc6 {[%emt 0:05:30]} bxc6 {[%emt 0:07:30]} 20. Qb6 {[%emt 0:02:30]} Nd7 {[%emt 0:05:30]} 21. Qxa6 {[%emt 0:00:30]} Ne5 {[%emt 0:00:30]} 22. b3 {[%emt 0:03:30]} g6 {[%emt 0:03:30]} 23. h3 {[%emt 0:07:30]} Ra8 {[%emt 0:02:30]} 24. Qe2 {[%emt 0:04:30]} Rec8 {[%emt 0:00:30]} 25. f4 {[%emt 0:02:30]} Nd7 {[%emt 0:00:30]} 26. Qd3 {[%emt 0:00:30]} Ra5 {[%emt 0:03:30]} 27. Qd4 {[%emt 0:02:30]} Qe6 {[%emt 0:05:30]} 28. Kh2 {[%emt 0:00:30]} h5 {[%emt 0:02:23]} 29. b4 {[%emt 0:06:30]} Ra3 {[%emt 0:06:40]} 30. Bxd5 {[%emt 0:00:30]} Qxe3 {[%emt 0:00:30]} 31. Qxe3 {[%emt 0:00:30]} Rxe3 {[%emt 0:00:30]} 32. Rxc6 {[%emt 0:00:30]} Re2+ {[%emt 0:02:24]} 33. Kg1 {[%emt 0:00:00]} Rxc6 {[%emt 0:03:29]} 34. Rxc6 {[%emt 0:00:00]} Kg7 {[%emt 0:02:05]} 35. Rc7 {[%emt 0:01:30]} Re7 {[%emt 0:00:30]} 36. Bc6 {[%emt 0:00:30]} 1-0

[Event "Turkish Cup 2022"]
[Site "Sakarya"]
[Date "2022.03.29"]
[Round "7.40"]
[White "Aydogdu, Aril"]
[Black "Sahin, Huseyin"]
[Result "0-1"]
[ECO "B10"]
[WhiteElo "1622"]
[BlackElo "1788"]
[Annotator "COMBH"]
[PlyCount "80"]
[EventDate "2022.03.25"]
[EventType "swiss"]
[EventCountry "TUR"]
[SourceTitle "playchess.com"]
[Source "ChessBase"]
[SourceQuality "1"]
[TimeControl "5400+30"]

1. e4 c6 2. Nf3 d5 3. exd5 cxd5 4. Ne5 Nc6 5. d4 Nf6 6. f4 Bf5 7. c3 e6 8. Bd3 Bxd3 9. Qxd3 Bd6 {[%emt 0:05:00]} 10. Nd2 {[%emt 0:02:30]} O-O {[%emt 0:00:30]} 11. O-O {[%emt 0:01:30]} Qb6 {[%emt 0:00:30]} 12. Ndf3 {[%emt 0:00:30]} Bxe5 {[%emt 0:01:30]} 13. Nxe5 {[%emt 0:09:30]} Nxe5 {[%emt 0:00:30]} 14. fxe5 {[%emt 0:00:30]} Ne4 {[%emt 0:00:30]} 15. Qe2 {[%emt 0:04:30]} Rae8 {[%emt 0:02:30]} 16. Rf3 {[%emt 0:12:30]} f6 {[%emt 0:02:30]} 17. Bf4 {[%emt 0:03:30]} f5 {[%emt 0:02:30]} 18. Rh3 {[%emt 0:00:30]} Rf7 {[%emt 0:01:30]} 19. Rf1 {[%emt 0:17:30]} a5 {[%emt 0:04:30]} 20. Bc1 {[%emt 0:05:30]} Qc6 {[%emt 0:04:30]} 21. Rhf3 {[%emt 0:08:30]} b5 {[%emt 0:02:30]} 22. g4 {[%emt 0:01:30]} g6 {[%emt 0:00:30]} 23. a3 {[%emt 0:01:30]} Qc4 {[%emt 0:01:30]} 24. Qg2 {[%emt 0:01:30]} Kh8 {[%emt 0:03:30]} 25. Qc2 {[%emt 0:05:30]} Rc7 {[%emt 0:01:30]} 26. gxf5 {[%emt 0:00:30]} gxf5 {[%emt 0:00:30]} 27. Rd1 {[%emt 0:00:30]} Rg8+ {[%emt 0:00:30]} 28. Kh1 {[%emt 0:00:30]} b4 {[%emt 0:04:30]} 29. axb4 {[%emt 0:03:30]} axb4 {[%emt 0:00:30]} 30. Rg1 {[%emt 0:04:23]} Rxg1+ {[%emt 0:01:30]} 31. Kxg1 {[%emt 0:00:09]} bxc3 {[%emt 0:01:30]} 32. bxc3 {[%emt 0:00:17]} Nxc3 {[%emt 0:00:30]} 33. Kg2 {[%emt 0:05:44]} Qxd4 {[%emt 0:02:30]} 34. Bb2 {[%emt 0:01:31]} Qg4+ {[%emt 0:00:00]} 35. Rg3 {[%emt 0:00:27]} Qe4+ {[%emt 0:00:00]} 36. Qxe4 {[%emt 0:00:00]} Nxe4 {[%emt 0:00:30]} 37. Rb3 {[%emt 0:00:00]} Rg7+ {[%emt 0:01:30]} 38. Kh3 {[%emt 0:01:27]} Rg4 {[%emt 0:00:00]} 39. Rb8+ {[%emt 0:00:11]} Kg7 {[%emt 0:00:00]} 40. Rb7+ {[%emt 0:00:31]} Kg6 {[%emt 0:00:30]} 0-1

[Event "Turkish Cup 2022"]
[Site "Sakarya"]
[Date "2022.03.29"]
[Round "7.41"]
[White "Pehlivan, Mert"]
[Black "Durucay, Uygar"]
[Result "1/2-1/2"]
[ECO "B10"]
[WhiteElo "1573"]
[BlackElo "1700"]
[Annotator "NA"]
[PlyCount "112"]
[EventDate "2022.03.25"]
[EventType "swiss"]
[EventCountry "TUR"]
[SourceTitle "playchess.com"]
[Source "ChessBase"]
[SourceQuality "1"]
[TimeControl "5400+30"]

1. e4 c6 2. d3 d5 3. Nd2 e5 4. Ngf3 {[%emt 0:01:30]} Bd6 {[%emt 0:06:30]} 5. g3 {[%emt 0:01:30]} Nf6 {[%emt 0:01:30]} 6. Bg2 {[%emt 0:00:30]} O-O {[%emt 0:00:30]} 7. O-O {[%emt 0:00:30]} h6 {[%emt 0:00:30]} 8. d4 {[%emt 0:05:30]} dxe4 {[%emt 0:16:30]} 9. Nxe5 {[%emt 0:00:30]} Bf5 {[%emt 0:02:30]} 10. Ndc4 {[%emt 0:05:30]} Bc7 {[%emt 0:00:00]} 11. c3 {[%emt 0:04:30]} Nbd7 {[%emt 0:03:00]} 12. f4 {[%emt 0:00:30]} exf3 {[%emt 0:00:30]} 13. Qxf3 {[%emt 0:07:30]} Bh7 {[%emt 0:09:30]} 14. Nxd7 {[%emt 0:09:30]} Nxd7 {[%emt 0:03:30]} 15. Ne3 {[%emt 0:02:30]} f5 {[%emt 0:01:30]} 16. Nc4 {[%emt 0:10:30]} Nf6 {[%emt 0:08:30]} 17. Bf4 {[%emt 0:04:30]} Nd5 {[%emt 0:01:30]} 18. Bxc7 {[%emt 0:01:30]} Qxc7 {[%emt 0:00:30]} 19. Ne3 {[%emt 0:05:30]} Nxe3 {[%emt 0:01:30]} 20. Qxe3 {[%emt 0:00:30]} Rae8 {[%emt 0:00:30]} 21. Qd2 {[%emt 0:00:30]} Bg6 {[%emt 0:00:30]} 22. c4 {[%emt 0:00:30]} Bh5 {[%emt 0:13:30]} 23. Rae1 {[%emt 0:07:30]} Rxe1 {[%emt 0:00:30]} 24. Rxe1 {[%emt 0:00:30]} Rd8 {[%emt 0:08:30]} 25. d5 {[%emt 0:03:30]} cxd5 {[%emt 0:00:30]} 26. cxd5 {[%emt 0:00:30]} Bf7 {[%emt 0:00:30]} 27. Rd1 {[%emt 0:04:30]} Qd6 {[%emt 0:03:59]} 28. Qf2 {[%emt 0:03:30]} Qe5 {[%emt 0:08:55]} 29. Qd4 {[%emt 0:00:30]} Qxd4+ {[%emt 0:00:30]} 30. Rxd4 {[%emt 0:00:30]} Rd6 {[%emt 0:02:59]} 31. Rc4 {[%emt 0:02:25]} Rd7 {[%emt 0:00:30]} 32. Rd4 {[%emt 0:00:30]} Kf8 {[%emt 0:00:39]} 33. d6 {[%emt 0:05:50]} Be6 {[%emt 0:01:27]} 34. Kf2 {[%emt 0:06:51]} Kf7 {[%emt 0:00:28]} 35. Ke3 {[%emt 0:00:30]} Kf6 {[%emt 0:00:15]} 36. a4 {[%emt 0:01:32]} Ke5 {[%emt 0:02:36]} 37. a5 {[%emt 0:01:04]} b6 {[%emt 0:01:14]} 38. axb6 {[%emt 0:00:30]} axb6 {[%emt 0:00:00]} 39. b4 {[%emt 0:00:58]} Rxd6 {[%emt 0:00:52]} 40. Rxd6 {[%emt 0:00:30]} Kxd6 {[%emt 0:00:30]} 41. Kd4 {[%emt 0:00:30]} Bd7 {[%emt 0:00:30]} 42. Bf1 {[%emt 0:01:01]} Bc6 {[%emt 0:01:12]} 43. Bd3 {[%emt 0:00:30]} g6 {[%emt 0:00:37]} 44. h4 {[%emt 0:00:58]} Ke6 {[%emt 0:00:50]} 45. Bc4+ {[%emt 0:03:00]} Kf6 {[%emt 0:00:40]} 46. Be2 {[%emt 0:00:30]} g5 {[%emt 0:00:30]} 47. hxg5+ {[%emt 0:00:30]} hxg5 {[%emt 0:00:17]} 48. Bd3 {[%emt 0:01:35]} f4 {[%emt 0:00:30]} 49. gxf4 {[%emt 0:00:30]} gxf4 {[%emt 0:00:30]} 50. Bf1 {[%emt 0:00:30]} Kg5 {[%emt 0:00:18]} 51. Ke5 {[%emt 0:00:34]} Kg4 {[%emt 0:00:30]} 52. Kd6 {[%emt 0:00:30]} Ba4 {[%emt 0:00:30]} 53. b5 {[%emt 0:00:30]} Kg3 {[%emt 0:01:42]} 54. Kc7 {[%emt 0:00:17]} f3 {[%emt 0:00:30]} 55. Kxb6 {[%emt 0:00:30]} Bd1 {[%emt 0:00:30]} 56. Kc7 {[%emt 0:00:13]} f2 {[%emt 0:00:52]} 1/2-1/2